[Event "Titled Tuesday Blitz June 20 Early 2023"]
[White "Amilal Munkhdalai"]
[Black "Mekhane, Adam"]
[WhiteFideId "4903250"]
[BlackFideId "36050601"]
[WhiteElo "2293"]
[BlackElo "2177"]
[Result "0-1"]
[Round "4"]
[TimeControl "180+2"]
[Date "2023.06.20"]
[WhiteClock "0:00:16"]
[BlackClock "0:01:12"]
[Board "71"]

1. e4 {[%clk 0:03:00]}  c5 {[%clk 0:02:58]} 2. Nf3 {[%clk 0:03:01]}  Nc6 {[%clk 0:02:59]} 3. d4 {[%clk 0:03:01]}  cxd4 {[%clk 0:03:00]} 4. Nxd4 {[%clk 0:03:02]}  Nf6 {[%clk 0:03:00]} 5. Nc3 {[%clk 0:03:00]}  h5 {[%clk 0:03:00]} 6. Nxc6 {[%clk 0:02:52]}  bxc6 {[%clk 0:02:59]} 7. Be2 {[%clk 0:02:49]}  e5 {[%clk 0:02:59]} 8. Bg5 {[%clk 0:02:45]}  Be7 {[%clk 0:02:58]} 9. O-O {[%clk 0:02:37]}  d6 {[%clk 0:02:58]} 10. b4 {[%clk 0:02:32]}  Rb8 {[%clk 0:02:58]} 11. Rb1 {[%clk 0:02:32]}  Be6 {[%clk 0:02:48]} 12. a4 {[%clk 0:02:32]}  d5 {[%clk 0:02:44]} 13. exd5 {[%clk 0:02:28]}  cxd5 {[%clk 0:02:37]} 14. Bb5+ {[%clk 0:02:27]}  Kf8 {[%clk 0:02:37]} 15. f4 {[%clk 0:02:24]}  a6 {[%clk 0:02:19]} 16. fxe5 {[%clk 0:02:14]}  Ng4 {[%clk 0:02:19]} 17. Bxe7+ {[%clk 0:02:13]}  Qxe7 {[%clk 0:02:20]} 18. Nxd5 {[%clk 0:01:40]}  Bxd5 {[%clk 0:02:07]} 19. Qxd5 {[%clk 0:01:39]}  axb5 {[%clk 0:02:07]} 20. axb5 {[%clk 0:01:16]}  Ne3 {[%clk 0:02:00]} 21. Rxf7+ {[%clk 0:01:15]}  Qxf7 {[%clk 0:01:55]} 22. Qd6+ {[%clk 0:01:15]}  Kg8 {[%clk 0:01:55]} 23. Qxb8+ {[%clk 0:01:15]}  Kh7 {[%clk 0:01:56]} 24. Qd6 {[%clk 0:01:09]}  Qg6 {[%clk 0:01:50]} 25. Qxg6+ {[%clk 0:00:53]}  Kxg6 {[%clk 0:01:51]} 26. Rc1 {[%clk 0:00:53]}  Nc4 {[%clk 0:01:49]} 27. e6 {[%clk 0:00:50]}  Kf6 {[%clk 0:01:49]} 28. Re1 {[%clk 0:00:48]}  Ke7 {[%clk 0:01:49]} 29. Re4 {[%clk 0:00:42]}  Rc8 {[%clk 0:01:49]} 30. h4 {[%clk 0:00:30]}  Nd6 {[%clk 0:01:45]} 31. Re5 {[%clk 0:00:28]}  g6 {[%clk 0:01:44]} 32. Rg5 {[%clk 0:00:25]}  Kf6 {[%clk 0:01:43]} 33. e7 {[%clk 0:00:25]}  Rxc2 {[%clk 0:01:32]} 34. b6 {[%clk 0:00:18]}  Rc8 {[%clk 0:01:21]} 35. Rc5 {[%clk 0:00:16]}  Rb8 {[%clk 0:01:21]} 36. Rc6 {[%clk 0:00:14]}  Kxe7 {[%clk 0:01:21]} 37. Kf2 {[%clk 0:00:14]}  Kd7 {[%clk 0:01:20]} 38. Rc7+ {[%clk 0:00:14]}  Ke6 {[%clk 0:01:20]} 39. Rc6 {[%clk 0:00:13]}  Rb7 {[%clk 0:01:15]} 40. Kf3 {[%clk 0:00:13]}  Kd7 {[%clk 0:01:15]} 41. Rc7+ {[%clk 0:00:09]}  Rxc7 {[%clk 0:01:14]} 42. bxc7 {[%clk 0:00:10]}  Kxc7 {[%clk 0:01:15]} 43. Kf4 {[%clk 0:00:11]}  Nf7 {[%clk 0:01:14]} 44. Ke4 {[%clk 0:00:10]}  Kd6 {[%clk 0:01:14]} 45. g3 {[%clk 0:00:11]}  Ke6 {[%clk 0:01:14]} 46. Kd4 {[%clk 0:00:10]}  Nd6 {[%clk 0:01:15]} 47. Ke3 {[%clk 0:00:10]}  Ke5 {[%clk 0:01:14]} 48. Kd3 {[%clk 0:00:09]}  Kd5 {[%clk 0:01:10]} 49. Ke3 {[%clk 0:00:09]}  Ke5 {[%clk 0:01:08]} 50. Kf3 {[%clk 0:00:08]}  Nf5 {[%clk 0:01:05]} 51. Kf2 {[%clk 0:00:07]}  Nd4 {[%clk 0:01:03]} 52. Ke3 {[%clk 0:00:06]}  Nc2+ {[%clk 0:01:03]} 53. Kf3 {[%clk 0:00:06]}  Nxb4 {[%clk 0:01:04]} 54. g4 {[%clk 0:00:07]}  Nd5 {[%clk 0:01:04]} 55. gxh5 {[%clk 0:00:08]}  gxh5 {[%clk 0:01:05]} 56. Kg3 {[%clk 0:00:09]}  Ke4 {[%clk 0:01:06]} 57. Kh3 {[%clk 0:00:09]}  Kf4 {[%clk 0:01:07]} 58. Kh2 {[%clk 0:00:09]}  Kg4 {[%clk 0:01:07]} 59. Kg2 {[%clk 0:00:10]}  Nf4+ {[%clk 0:01:08]} 60. Kh2 {[%clk 0:00:11]}  Kxh4 {[%clk 0:01:08]} 61. Kg1 {[%clk 0:00:12]}  Kg4 {[%clk 0:01:09]} 62. Kh1 {[%clk 0:00:12]}  h4 {[%clk 0:01:10]} 63. Kh2 {[%clk 0:00:13]}  h3 {[%clk 0:01:11]} 64. Kg1 {[%clk 0:00:14]}  Kg3 {[%clk 0:01:12]} 65. Kh1 {[%clk 0:00:15]}  Nd3 {[%clk 0:01:12]} 66. Kg1 {[%clk 0:00:15]}  h2+ {[%clk 0:01:12]} 67. Kh1 {[%clk 0:00:16]}  Nf2# {[%clk 0:01:12]} 0-1


[Site "https://www.chess.com"]

[Event "Titled Tuesday Blitz June 20 Early 2023"]
[White "Kuzmin, Roman"]
[Black "Pulpan, Jakub"]
[WhiteFideId "44134932"]
[BlackFideId "302759"]
[WhiteElo "2122"]
[BlackElo "2484"]
[Result "1/2-1/2"]
[Round "4"]
[TimeControl "180+2"]
[Date "2023.06.20"]
[WhiteClock "0:00:08"]
[BlackClock "0:00:15"]
[Board "73"]

1. e4 {[%clk 0:03:00]}  a6 {[%clk 0:02:40]} 2. d4 {[%clk 0:03:00]}  d6 {[%clk 0:02:41]} 3. Bd3 {[%clk 0:02:55]}  g6 {[%clk 0:02:42]} 4. h4 {[%clk 0:02:55]}  Bg7 {[%clk 0:02:40]} 5. Be3 {[%clk 0:02:53]}  c5 {[%clk 0:02:39]} 6. c3 {[%clk 0:02:52]}  cxd4 {[%clk 0:02:38]} 7. cxd4 {[%clk 0:02:53]}  Nc6 {[%clk 0:02:38]} 8. Bc2 {[%clk 0:02:53]}  Qb6 {[%clk 0:02:35]} 9. Ne2 {[%clk 0:02:46]}  Qxb2 {[%clk 0:02:28]} 10. Nbc3 {[%clk 0:02:47]}  Nf6 {[%clk 0:02:11]} 11. Rb1 {[%clk 0:02:25]}  Qa3 {[%clk 0:02:11]} 12. Rb3 {[%clk 0:02:23]}  Qa5 {[%clk 0:02:08]} 13. d5 {[%clk 0:02:24]}  Nb4 {[%clk 0:02:04]} 14. Bb1 {[%clk 0:02:24]}  Nxa2 {[%clk 0:01:38]} 15. Bxa2 {[%clk 0:01:57]}  Nxe4 {[%clk 0:01:37]} 16. Bd4 {[%clk 0:01:54]}  Nxc3 {[%clk 0:01:30]} 17. Nxc3 {[%clk 0:01:53]}  Be5 {[%clk 0:00:57]} 18. O-O {[%clk 0:01:52]}  b5 {[%clk 0:00:51]} 19. Bxe5 {[%clk 0:01:40]}  dxe5 {[%clk 0:00:52]} 20. d6 {[%clk 0:01:41]}  Be6 {[%clk 0:00:42]} 21. Qf3 {[%clk 0:01:32]}  Rc8 {[%clk 0:00:20]} 22. Rd1 {[%clk 0:00:59]}  exd6 {[%clk 0:00:14]} 23. Ne4 {[%clk 0:00:56]}  O-O {[%clk 0:00:06]} 24. Ra3 {[%clk 0:00:54]}  Qb4 {[%clk 0:00:05]} 25. Bxe6 {[%clk 0:00:48]}  fxe6 {[%clk 0:00:05]} 26. Qe3 {[%clk 0:00:44]}  d5 {[%clk 0:00:05]} 27. Ng5 {[%clk 0:00:43]}  Rc6 {[%clk 0:00:04]} 28. Rb3 {[%clk 0:00:41]}  Qxh4 {[%clk 0:00:04]} 29. Qxe5 {[%clk 0:00:37]}  Qf4 {[%clk 0:00:03]} 30. Qxf4 {[%clk 0:00:31]}  Rxf4 {[%clk 0:00:04]} 31. Re1 {[%clk 0:00:32]}  Rf6 {[%clk 0:00:04]} 32. Rbe3 {[%clk 0:00:33]}  d4 {[%clk 0:00:04]} 33. Rxe6 {[%clk 0:00:33]}  Rfxe6 {[%clk 0:00:04]} 34. Rxe6 {[%clk 0:00:34]}  Rc1+ {[%clk 0:00:03]} 35. Kh2 {[%clk 0:00:34]}  b4 {[%clk 0:00:04]} 36. Rxa6 {[%clk 0:00:34]}  b3 {[%clk 0:00:04]} 37. Rb6 {[%clk 0:00:35]}  d3 {[%clk 0:00:05]} 38. Nf3 {[%clk 0:00:27]}  Rb1 {[%clk 0:00:02]} 39. Kg3 {[%clk 0:00:22]}  Rb2 {[%clk 0:00:02]} 40. Rd6 {[%clk 0:00:18]}  Rc2 {[%clk 0:00:02]} 41. Rxd3 {[%clk 0:00:18]}  b2 {[%clk 0:00:02]} 42. Rb3 {[%clk 0:00:19]}  h5 {[%clk 0:00:03]} 43. Rb8+ {[%clk 0:00:13]}  Kf7 {[%clk 0:00:03]} 44. Rb7+ {[%clk 0:00:14]}  Ke8 {[%clk 0:00:03]} 45. Rb6 {[%clk 0:00:14]}  Kd7 {[%clk 0:00:02]} 46. Ne5+ {[%clk 0:00:14]}  Kc7 {[%clk 0:00:02]} 47. Rb4 {[%clk 0:00:12]}  g5 {[%clk 0:00:01]} 48. Nf7 {[%clk 0:00:11]}  h4+ {[%clk 0:00:01]} 49. Kh3 {[%clk 0:00:10]}  g4+ {[%clk 0:00:01]} 50. Kxg4 {[%clk 0:00:07]}  Rxf2 {[%clk 0:00:01]} 51. Ng5 {[%clk 0:00:04]}  Rxg2+ {[%clk 0:00:01]} 52. Kxh4 {[%clk 0:00:04]}  Kd6 {[%clk 0:00:01]} 53. Ne4+ {[%clk 0:00:04]}  Kd5 {[%clk 0:00:02]} 54. Kh3 {[%clk 0:00:03]}  Rc2 {[%clk 0:00:01]} 55. Kg3 {[%clk 0:00:02]}  Re2 {[%clk 0:00:01]} 56. Kf3 {[%clk 0:00:02]}  Rxe4 {[%clk 0:00:01]} 57. Rxb2 {[%clk 0:00:02]}  Rh4 {[%clk 0:00:02]} 58. Rb5+ {[%clk 0:00:02]}  Kc4 {[%clk 0:00:02]} 59. Rg5 {[%clk 0:00:02]}  Rh3+ {[%clk 0:00:02]} 60. Rg3 {[%clk 0:00:03]}  Rh8 {[%clk 0:00:03]} 61. Rg4+ {[%clk 0:00:03]}  Kd3 {[%clk 0:00:04]} 62. Rf4 {[%clk 0:00:04]}  Rh1 {[%clk 0:00:04]} 63. Kg4 {[%clk 0:00:04]}  Ke3 {[%clk 0:00:04]} 64. Rf7 {[%clk 0:00:04]}  Rg1+ {[%clk 0:00:05]} 65. Kh5 {[%clk 0:00:04]}  Ke4 {[%clk 0:00:05]} 66. Kh4 {[%clk 0:00:05]}  Ke5 {[%clk 0:00:05]} 67. Kh5 {[%clk 0:00:05]}  Rg8 {[%clk 0:00:05]} 68. Rf2 {[%clk 0:00:05]}  Ke4 {[%clk 0:00:06]} 69. Kh4 {[%clk 0:00:06]}  Rg7 {[%clk 0:00:07]} 70. Rf6 {[%clk 0:00:06]}  Rh7+ {[%clk 0:00:07]} 71. Kg5 {[%clk 0:00:06]}  Ke5 {[%clk 0:00:08]} 72. Rf2 {[%clk 0:00:06]}  Rg7+ {[%clk 0:00:08]} 73. Kh6 {[%clk 0:00:06]}  Rg8 {[%clk 0:00:09]} 74. Kh7 {[%clk 0:00:06]}  Rg4 {[%clk 0:00:08]} 75. Kh6 {[%clk 0:00:07]}  Ke4 {[%clk 0:00:09]} 76. Kh5 {[%clk 0:00:07]}  Rg3 {[%clk 0:00:10]} 77. Rf8 {[%clk 0:00:07]}  Ke3 {[%clk 0:00:10]} 78. Kh4 {[%clk 0:00:08]}  Rg1 {[%clk 0:00:10]} 79. Kh5 {[%clk 0:00:08]}  Ra1 {[%clk 0:00:11]} 80. Kh4 {[%clk 0:00:08]}  Ra4+ {[%clk 0:00:11]} 81. Kh5 {[%clk 0:00:09]}  Ke4 {[%clk 0:00:12]} 82. Kh4 {[%clk 0:00:09]}  Rb4 {[%clk 0:00:12]} 83. Kh5 {[%clk 0:00:10]}  Ke5 {[%clk 0:00:12]} 84. Rf1 {[%clk 0:00:08]}  Rb5 {[%clk 0:00:12]} 85. Kh4 {[%clk 0:00:08]}  Ke4 {[%clk 0:00:12]} 86. Rf8 {[%clk 0:00:07]}  Ke5 {[%clk 0:00:13]} 87. Kh5 {[%clk 0:00:07]}  Ke4+ {[%clk 0:00:13]} 88. Kh4 {[%clk 0:00:07]}  Ke5 {[%clk 0:00:14]} 89. Kh5 {[%clk 0:00:07]}  Ke4+ {[%clk 0:00:15]} 90. Kh4 {[%clk 0:00:08]} 1/2-1/2


[Site "https://www.chess.com"]

[Event "Titled Tuesday Blitz June 20 Early 2023"]
[White "Fus, Jakub"]
[Black "Bilan, Danila"]
[WhiteFideId "1193023"]
[BlackFideId "24161918"]
[WhiteElo "2335"]
[BlackElo "2146"]
[Result "1-0"]
[Round "4"]
[TimeControl "180+2"]
[Date "2023.06.20"]
[WhiteClock "0:00:06"]
[BlackClock "0:00:00"]
[Board "77"]

1. d4 {[%clk 0:03:00]}  d5 {[%clk 0:02:58]} 2. c4 {[%clk 0:02:59]}  c6 {[%clk 0:02:55]} 3. cxd5 {[%clk 0:02:58]}  cxd5 {[%clk 0:02:55]} 4. Bf4 {[%clk 0:02:58]}  Nf6 {[%clk 0:02:55]} 5. e3 {[%clk 0:02:58]}  Nc6 {[%clk 0:02:55]} 6. Bb5 {[%clk 0:02:57]}  Bd7 {[%clk 0:02:51]} 7. Nc3 {[%clk 0:02:57]}  e6 {[%clk 0:02:49]} 8. Nf3 {[%clk 0:02:55]}  Rc8 {[%clk 0:02:48]} 9. O-O {[%clk 0:02:55]}  Na5 {[%clk 0:02:42]} 10. Bd3 {[%clk 0:02:34]}  Nc4 {[%clk 0:02:42]} 11. Qe2 {[%clk 0:02:32]}  Bb4 {[%clk 0:02:25]} 12. Rac1 {[%clk 0:02:29]}  O-O {[%clk 0:02:18]} 13. Ne5 {[%clk 0:02:28]}  Nxe5 {[%clk 0:02:08]} 14. Bxe5 {[%clk 0:02:09]}  Bc6 {[%clk 0:02:01]} 15. a3 {[%clk 0:02:00]}  Bd6 {[%clk 0:01:59]} 16. f4 {[%clk 0:01:49]}  Ne4 {[%clk 0:01:48]} 17. Bxe4 {[%clk 0:01:40]}  dxe4 {[%clk 0:01:47]} 18. Bxd6 {[%clk 0:01:33]}  Qxd6 {[%clk 0:01:48]} 19. Rc2 {[%clk 0:01:30]}  Bd5 {[%clk 0:01:34]} 20. Rfc1 {[%clk 0:01:20]}  Bb3 {[%clk 0:00:49]} 21. Nxe4 {[%clk 0:01:03]}  Rxc2 {[%clk 0:00:46]} 22. Qxc2 {[%clk 0:00:56]}  Qd5 {[%clk 0:00:39]} 23. Qd3 {[%clk 0:00:56]}  b6 {[%clk 0:00:32]} 24. Ng5 {[%clk 0:00:26]}  f5 {[%clk 0:00:28]} 25. Nf3 {[%clk 0:00:20]}  Ba4 {[%clk 0:00:18]} 26. Ne5 {[%clk 0:00:21]}  Bb5 {[%clk 0:00:13]} 27. Qc2 {[%clk 0:00:21]}  Ba6 {[%clk 0:00:08]} 28. Qc6 {[%clk 0:00:11]}  Qb3 {[%clk 0:00:08]} 29. Qc3 {[%clk 0:00:11]}  Qd5 {[%clk 0:00:08]} 30. Qd2 {[%clk 0:00:07]}  h6 {[%clk 0:00:05]} 31. h3 {[%clk 0:00:08]}  Rd8 {[%clk 0:00:05]} 32. Kh2 {[%clk 0:00:07]}  Bb7 {[%clk 0:00:05]} 33. Rc7 {[%clk 0:00:07]}  Rf8 {[%clk 0:00:04]} 34. Qc2 {[%clk 0:00:07]}  Ba8 {[%clk 0:00:04]} 35. Rd7 {[%clk 0:00:07]}  Qb5 {[%clk 0:00:00]} 36. Qc7 {[%clk 0:00:06]} 1-0


[Site "https://www.chess.com"]

[Event "Titled Tuesday Blitz June 20 Early 2023"]
[White "Petrosian, Karlen"]
[Black "a-z30"]
[WhiteFideId "4176146"]
[WhiteElo "2345"]
[BlackElo "2518"]
[Result "1-0"]
[Round "4"]
[TimeControl "180+2"]
[Date "2023.06.20"]
[WhiteClock "0:00:07"]
[BlackClock "0:00:00"]
[Board "78"]

1. e4 {[%clk 0:03:00]}  d6 {[%clk 0:02:59]} 2. d4 {[%clk 0:03:00]}  Nf6 {[%clk 0:03:00]} 3. Nc3 {[%clk 0:03:01]}  g6 {[%clk 0:03:01]} 4. Nf3 {[%clk 0:03:00]}  Bg7 {[%clk 0:03:02]} 5. Be3 {[%clk 0:02:58]}  O-O {[%clk 0:03:02]} 6. Qd2 {[%clk 0:02:58]}  Bg4 {[%clk 0:03:02]} 7. Bh6 {[%clk 0:02:51]}  c5 {[%clk 0:02:31]} 8. Bxg7 {[%clk 0:02:35]}  Kxg7 {[%clk 0:02:31]} 9. dxc5 {[%clk 0:02:35]}  Bxf3 {[%clk 0:02:10]} 10. gxf3 {[%clk 0:02:34]}  dxc5 {[%clk 0:02:10]} 11. O-O-O {[%clk 0:02:33]}  Qxd2+ {[%clk 0:02:09]} 12. Rxd2 {[%clk 0:02:33]}  Nc6 {[%clk 0:02:09]} 13. Nd5 {[%clk 0:01:48]}  e6 {[%clk 0:01:44]} 14. Nxf6 {[%clk 0:01:46]}  Kxf6 {[%clk 0:01:45]} 15. f4 {[%clk 0:01:36]}  Rad8 {[%clk 0:01:43]} 16. c3 {[%clk 0:01:25]}  e5 {[%clk 0:01:37]} 17. fxe5+ {[%clk 0:01:19]}  Kxe5 {[%clk 0:01:37]} 18. Bg2 {[%clk 0:01:15]}  Rxd2 {[%clk 0:01:34]} 19. Kxd2 {[%clk 0:01:16]}  Kf4 {[%clk 0:01:34]} 20. Ke2 {[%clk 0:01:09]}  Rd8 {[%clk 0:01:32]} 21. h4 {[%clk 0:01:06]}  Ne5 {[%clk 0:01:13]} 22. Rh3 {[%clk 0:00:45]}  h6 {[%clk 0:01:07]} 23. b3 {[%clk 0:00:41]}  b5 {[%clk 0:00:59]} 24. Rg3 {[%clk 0:00:41]}  b4 {[%clk 0:00:52]} 25. Rh3 {[%clk 0:00:30]}  a5 {[%clk 0:00:50]} 26. Rg3 {[%clk 0:00:29]}  Rd6 {[%clk 0:00:40]} 27. Bf1 {[%clk 0:00:23]}  Kxe4 {[%clk 0:00:29]} 28. Bg2+ {[%clk 0:00:23]}  Kf4 {[%clk 0:00:29]} 29. Re3 {[%clk 0:00:24]}  f5 {[%clk 0:00:26]} 30. Bf1 {[%clk 0:00:21]}  g5 {[%clk 0:00:25]} 31. hxg5 {[%clk 0:00:20]}  hxg5 {[%clk 0:00:26]} 32. Rh3 {[%clk 0:00:16]}  Nf3 {[%clk 0:00:24]} 33. Rxf3+ {[%clk 0:00:16]}  Ke5 {[%clk 0:00:24]} 34. Re3+ {[%clk 0:00:16]}  Kf4 {[%clk 0:00:24]} 35. Bg2 {[%clk 0:00:16]}  g4 {[%clk 0:00:24]} 36. Rd3 {[%clk 0:00:16]}  Re6+ {[%clk 0:00:24]} 37. Kd2 {[%clk 0:00:17]}  Re5 {[%clk 0:00:20]} 38. Bd5 {[%clk 0:00:16]}  Kg5 {[%clk 0:00:19]} 39. c4 {[%clk 0:00:16]}  f4 {[%clk 0:00:19]} 40. Kd1 {[%clk 0:00:15]}  f3 {[%clk 0:00:17]} 41. Bxf3 {[%clk 0:00:11]}  gxf3 {[%clk 0:00:16]} 42. Rxf3 {[%clk 0:00:11]}  Re7 {[%clk 0:00:13]} 43. Rf8 {[%clk 0:00:10]}  Rd7+ {[%clk 0:00:11]} 44. Kc2 {[%clk 0:00:10]}  Re7 {[%clk 0:00:11]} 45. Kd3 {[%clk 0:00:10]}  Rd7+ {[%clk 0:00:11]} 46. Ke3 {[%clk 0:00:11]}  Re7+ {[%clk 0:00:12]} 47. Kd2 {[%clk 0:00:11]}  Rd7+ {[%clk 0:00:12]} 48. Kc2 {[%clk 0:00:12]}  Re7 {[%clk 0:00:12]} 49. Rd8 {[%clk 0:00:11]}  Re2+ {[%clk 0:00:12]} 50. Rd2 {[%clk 0:00:12]}  Re1 {[%clk 0:00:11]} 51. Rd5+ {[%clk 0:00:12]}  Kf4 {[%clk 0:00:10]} 52. Rxc5 {[%clk 0:00:12]}  Re2+ {[%clk 0:00:11]} 53. Kd3 {[%clk 0:00:13]}  Rxa2 {[%clk 0:00:11]} 54. Kd4 {[%clk 0:00:12]}  Ra3 {[%clk 0:00:10]} 55. Rb5 {[%clk 0:00:11]}  Kf3 {[%clk 0:00:09]} 56. Rf5+ {[%clk 0:00:11]}  Kg4 {[%clk 0:00:09]} 57. Re5 {[%clk 0:00:11]}  Kf3 {[%clk 0:00:08]} 58. Rf5+ {[%clk 0:00:08]}  Kg4 {[%clk 0:00:08]} 59. Ke4 {[%clk 0:00:08]}  Ra2 {[%clk 0:00:06]} 60. f3+ {[%clk 0:00:09]}  Kg3 {[%clk 0:00:06]} 61. Rg5+ {[%clk 0:00:09]}  Kf2 {[%clk 0:00:06]} 62. Rd5 {[%clk 0:00:09]}  Ra3 {[%clk 0:00:05]} 63. Rd3 {[%clk 0:00:09]}  Ra1 {[%clk 0:00:03]} 64. f4 {[%clk 0:00:10]}  Re1+ {[%clk 0:00:04]} 65. Kd4 {[%clk 0:00:09]}  Re8 {[%clk 0:00:03]} 66. Kc5 {[%clk 0:00:09]}  Ke2 {[%clk 0:00:03]} 67. Rh3 {[%clk 0:00:08]}  Rf8 {[%clk 0:00:02]} 68. Kb5 {[%clk 0:00:09]}  Rf5+ {[%clk 0:00:01]} 69. Ka4 {[%clk 0:00:09]}  Kd2 {[%clk 0:00:01]} 70. Rg3 {[%clk 0:00:08]}  Kc2 {[%clk 0:00:01]} 71. Rg5 {[%clk 0:00:08]}  Rxf4 {[%clk 0:00:01]} 72. Rxa5 {[%clk 0:00:09]}  Rf3 {[%clk 0:00:02]} 73. Kxb4 {[%clk 0:00:07]}  Rxb3+ {[%clk 0:00:03]} 74. Kc5 {[%clk 0:00:07]}  Kc3 {[%clk 0:00:02]} 75. Kd5 {[%clk 0:00:07]}  Rb8 {[%clk 0:00:02]} 76. c5 {[%clk 0:00:06]}  Rd8+ {[%clk 0:00:02]} 77. Kc6 {[%clk 0:00:06]}  Kb4 {[%clk 0:00:03]} 78. Rb5+ {[%clk 0:00:06]}  Kc4 {[%clk 0:00:02]} 79. Ra5 {[%clk 0:00:06]}  Rc8+ {[%clk 0:00:02]} 80. Kb6 {[%clk 0:00:06]}  Rb8+ {[%clk 0:00:00]} 81. Kc7 {[%clk 0:00:07]} 1-0


[Site "https://www.chess.com"]

[Event "Titled Tuesday Blitz June 20 Early 2023"]
[White "Begmuratov, Alisher"]
[Black "Delorme, Axel"]
[WhiteFideId "14203367"]
[BlackFideId "632023"]
[WhiteElo "2387"]
[BlackElo "2478"]
[Result "0-1"]
[Round "4"]
[TimeControl "180+2"]
[Date "2023.06.20"]
[WhiteClock "0:00:35"]
[BlackClock "0:01:46"]
[Board "84"]

1. e4 {[%clk 0:03:00]}  c5 {[%clk 0:02:59]} 2. d4 {[%clk 0:03:01]}  cxd4 {[%clk 0:02:59]} 3. c3 {[%clk 0:03:01]}  dxc3 {[%clk 0:02:59]} 4. Nxc3 {[%clk 0:03:02]}  Nc6 {[%clk 0:03:00]} 5. Nf3 {[%clk 0:03:01]}  e6 {[%clk 0:03:01]} 6. Bc4 {[%clk 0:03:01]}  a6 {[%clk 0:03:01]} 7. O-O {[%clk 0:03:01]}  b5 {[%clk 0:03:01]} 8. Bb3 {[%clk 0:03:01]}  Bb7 {[%clk 0:03:02]} 9. Qe2 {[%clk 0:03:02]}  Na5 {[%clk 0:03:00]} 10. Rd1 {[%clk 0:02:54]}  Nxb3 {[%clk 0:02:58]} 11. axb3 {[%clk 0:02:55]}  Nf6 {[%clk 0:02:48]} 12. Bg5 {[%clk 0:02:06]}  Be7 {[%clk 0:02:44]} 13. Bxf6 {[%clk 0:01:48]}  Bxf6 {[%clk 0:02:38]} 14. e5 {[%clk 0:01:49]}  Bxf3 {[%clk 0:02:02]} 15. Qxf3 {[%clk 0:01:15]}  Bxe5 {[%clk 0:02:02]} 16. Rxd7 {[%clk 0:01:15]}  Kxd7 {[%clk 0:01:54]} 17. Rd1+ {[%clk 0:01:14]}  Ke7 {[%clk 0:01:50]} 18. Qb7+ {[%clk 0:00:35]}  Qc7 {[%clk 0:01:46]} 0-1


[Site "https://www.chess.com"]

[Event "Titled Tuesday Blitz June 20 Early 2023"]
[White "Rizzo, Tobias"]
[Black "Kvaloy, Aksel Bu"]
[WhiteFideId "30942691"]
[BlackFideId "1528815"]
[WhiteElo "2478"]
[BlackElo "2318"]
[Result "1/2-1/2"]
[Round "4"]
[TimeControl "180+2"]
[Date "2023.06.20"]
[WhiteClock "0:00:03"]
[BlackClock "0:00:07"]
[Board "88"]

1. d4 {[%clk 0:03:00]}  Nf6 {[%clk 0:02:56]} 2. Bg5 {[%clk 0:03:00]}  d5 {[%clk 0:02:55]} 3. Bxf6 {[%clk 0:03:00]}  gxf6 {[%clk 0:02:56]} 4. e3 {[%clk 0:03:01]}  c5 {[%clk 0:02:56]} 5. c3 {[%clk 0:02:54]}  Nc6 {[%clk 0:02:53]} 6. Nd2 {[%clk 0:02:48]}  e5 {[%clk 0:02:48]} 7. Ngf3 {[%clk 0:02:19]}  Qb6 {[%clk 0:02:45]} 8. Qb3 {[%clk 0:02:15]}  Be6 {[%clk 0:02:39]} 9. Bb5 {[%clk 0:02:07]}  Bd6 {[%clk 0:02:34]} 10. g3 {[%clk 0:01:41]}  O-O-O {[%clk 0:02:31]} 11. a4 {[%clk 0:01:36]}  Kb8 {[%clk 0:02:22]} 12. Be2 {[%clk 0:01:29]}  Qc7 {[%clk 0:02:18]} 13. a5 {[%clk 0:01:19]}  Nxa5 {[%clk 0:02:08]} 14. Qa4 {[%clk 0:01:17]}  Nc6 {[%clk 0:02:05]} 15. O-O {[%clk 0:01:16]}  h5 {[%clk 0:01:51]} 16. b4 {[%clk 0:01:11]}  cxd4 {[%clk 0:01:41]} 17. exd4 {[%clk 0:01:06]}  e4 {[%clk 0:01:38]} 18. Nh4 {[%clk 0:01:06]}  b6 {[%clk 0:01:33]} 19. Nb3 {[%clk 0:01:03]}  f5 {[%clk 0:01:21]} 20. Nc5 {[%clk 0:00:56]}  bxc5 {[%clk 0:01:05]} 21. b5 {[%clk 0:00:57]}  Ne7 {[%clk 0:00:11]} 22. b6 {[%clk 0:00:57]}  Qd7 {[%clk 0:00:07]} 23. Bb5 {[%clk 0:00:52]}  Qb7 {[%clk 0:00:07]} 24. bxa7+ {[%clk 0:00:45]}  Ka8 {[%clk 0:00:07]} 25. Rfb1 {[%clk 0:00:44]}  Qc7 {[%clk 0:00:07]} 26. Ba6 {[%clk 0:00:29]}  Rd7 {[%clk 0:00:04]} 27. Bb7+ {[%clk 0:00:17]}  Qxb7 {[%clk 0:00:04]} 28. Rxb7 {[%clk 0:00:18]}  Rxb7 {[%clk 0:00:04]} 29. Qa6 {[%clk 0:00:17]}  Bc7 {[%clk 0:00:03]} 30. dxc5 {[%clk 0:00:16]}  Bd7 {[%clk 0:00:03]} 31. Ng2 {[%clk 0:00:15]}  Bc6 {[%clk 0:00:03]} 32. Ne3 {[%clk 0:00:15]}  f4 {[%clk 0:00:03]} 33. Nc2 {[%clk 0:00:10]}  fxg3 {[%clk 0:00:03]} 34. hxg3 {[%clk 0:00:11]}  h4 {[%clk 0:00:03]} 35. g4 {[%clk 0:00:10]}  Rg8 {[%clk 0:00:03]} 36. Nd4 {[%clk 0:00:08]}  Rxg4+ {[%clk 0:00:04]} 37. Kh1 {[%clk 0:00:09]}  Rg6 {[%clk 0:00:05]} 38. Rg1 {[%clk 0:00:08]}  Be8 {[%clk 0:00:02]} 39. Rxg6 {[%clk 0:00:08]}  fxg6 {[%clk 0:00:03]} 40. Qe6 {[%clk 0:00:06]}  Bd8 {[%clk 0:00:02]} 41. c6 {[%clk 0:00:05]}  Rc7 {[%clk 0:00:03]} 42. Qe5 {[%clk 0:00:01]}  Bxc6 {[%clk 0:00:03]} 43. Ne6 {[%clk 0:00:02]}  Rd7 {[%clk 0:00:03]} 44. Nxd8 {[%clk 0:00:02]}  Rxd8 {[%clk 0:00:04]} 45. Qxe7 {[%clk 0:00:03]}  Rc8 {[%clk 0:00:05]} 46. Qd6 {[%clk 0:00:03]}  Bb7 {[%clk 0:00:05]} 47. Qxg6 {[%clk 0:00:04]}  Rxc3 {[%clk 0:00:06]} 48. Qf6 {[%clk 0:00:04]}  Rc8 {[%clk 0:00:05]} 49. Kh2 {[%clk 0:00:04]}  Kxa7 {[%clk 0:00:06]} 50. Qd4+ {[%clk 0:00:05]}  Ka8 {[%clk 0:00:06]} 51. Kh3 {[%clk 0:00:06]}  Rc4 {[%clk 0:00:06]} 52. Qh8+ {[%clk 0:00:05]}  Ka7 {[%clk 0:00:07]} 53. Kxh4 {[%clk 0:00:06]}  Rc2 {[%clk 0:00:06]} 54. Qa1+ {[%clk 0:00:06]}  Kb8 {[%clk 0:00:06]} 55. Kg3 {[%clk 0:00:07]}  Rd2 {[%clk 0:00:05]} 56. Kf4 {[%clk 0:00:06]}  Rd3 {[%clk 0:00:05]} 57. Ke5 {[%clk 0:00:06]}  Rf3 {[%clk 0:00:04]} 58. Kd6 {[%clk 0:00:04]}  Rf8 {[%clk 0:00:04]} 59. Qg7 {[%clk 0:00:03]}  Rd8+ {[%clk 0:00:04]} 60. Kc5 {[%clk 0:00:04]}  Rc8+ {[%clk 0:00:05]} 61. Kb6 {[%clk 0:00:04]}  Rc6+ {[%clk 0:00:05]} 62. Kb5 {[%clk 0:00:04]}  Rc4 {[%clk 0:00:06]} 63. Qf8+ {[%clk 0:00:04]}  Ka7 {[%clk 0:00:06]} 64. Qa3+ {[%clk 0:00:04]}  Kb8 {[%clk 0:00:07]} 65. Qd6+ {[%clk 0:00:04]}  Ka7 {[%clk 0:00:07]} 66. Qa3+ {[%clk 0:00:04]}  Kb8 {[%clk 0:00:07]} 67. Qg3+ {[%clk 0:00:03]}  Ka7 {[%clk 0:00:07]} 68. Qa3+ {[%clk 0:00:03]} 1/2-1/2


[Site "https://www.chess.com"]